bitfinex-derivatives/quotes_ETHF0:USTF0_20241102
["timestamp","ask_amount","ask_price","bid_price","bid_amount"]
[1730565233445,6.9738448,2494.6,2494.1,1.3268]
[1730565233640,2.09841666,2494.4,2494.1,1.3268]
[1730565233844,2.09841666,2494.4,2494.3,0.28071]
[1730565234045,6.6931648,2494.6,2494.1,1.3268]
[1730565234046,2.09841666,2494.5,2494.1,1.3268]
[1730565234350,2.55531666,2494.4,2494.3,0.28071]
[1730565237052,2.55531666,2494.4,2494.1,1.3268]
[1730565237053,2.83601666,2494.4,2494.2,0.28071]
[1730565237253,2.37913666,2494.3,2494.1,0.72532]
[1730565237558,2.80423666,2494.2,2494.1,0.28072]
[1730565237858,2.96031666,2494.2,2494.0,0.28073]
[1730565238157,3.24104666,2494.2,2494.1,0.28073]
[1730565238761,3.24104666,2494.2,2494.0,0.28073]
[1730565238762,0.28073,2494.1,2494.0,0.28073]
[1730565238959,2.37914666,2494.1,2494.0,0.12539395]
[1730565239162,2.37914666,2494.1,2494.0,0.28074]
[1730565239453,0.28074,2494.0,2493.9,0.28074]
[1730565239646,0.4204,2494.0,2493.9,0.40614106]
[1730565239955,2.52074464,2494.0,2493.9,0.40614106]
[1730565240557,2.10034464,2494.0,2493.9,0.40614126]
[1730565240769,2.10034464,2494.1,2494.0,0.28074]
[1730565240948,2.10034464,2494.2,2494.0,4.13499872]
[1730565241147,2.10034464,2494.2,2494.1,0.28073]
[1730565241662,2.9023748,2494.3,2494.2,0.28072]
[1730565241867,2.9023748,2494.3,2494.0,0.28073]
[1730565241868,0.28073,2494.1,2494.0,0.28073]
[1730565242051,2.10048862,2494.1,2493.9,0.28074]
[1730565242256,3.37618862,2494.0,2493.9,0.28074]
[1730565242452,3.37618862,2494.0,2493.9,0.40614137]
[1730565243657,3.65692862,2494.0,2493.9,0.40614137]
[1730565244161,3.37618862,2494.0,2493.9,0.40614137]
[1730565245768,3.65692862,2494.0,2493.9,0.40615137]
[1730565246055,3.37618862,2494.0,2493.9,0.40615137]
[1730565247252,3.65692862,2494.0,2493.9,0.40615137]
[1730565247764,3.37618862,2494.0,2493.9,0.40615137]
[1730565248254,1.2757,2494.0,2493.9,0.40615137]
[1730565249752,2.53401522,2494.0,2493.9,0.40615137]
[1730565249955,0.4327,2494.0,2493.9,0.40615137]
[1730565250354,0.71344,2494.0,2493.9,0.40615137]
[1730565250556,0.4327,2494.0,2493.9,0.40615137]
[1730565250958,3.0543648,2494.0,2493.9,0.40615137]
[1730565251651,0.4327,2494.0,2493.9,0.40615137]
[1730565252260,3.0543648,2494.0,2493.9,0.40615137]
[1730565252655,0.28076,2493.9,2493.7,0.28077]
[1730565252856,2.10136722,2493.8,2493.7,0.28077]
[1730565253052,0.28076,2493.8,2493.7,0.40618051]
[1730565253459,10.12944857,2493.9,2493.7,0.40618514]
[1730565253762,2.9024248,2493.8,2493.7,0.28077]
[1730565255557,0.28077,2493.8,2493.7,0.28077]
[1730565255765,10.12944857,2493.9,2493.8,0.28076]
[1730565256156,7.50778377,2493.9,2493.8,0.28076]
[1730565256371,10.13327782,2493.9,2493.8,0.28076]
[1730565256860,0.28076,2493.8,2493.7,0.28077]
[1730565257260,0.28076,2493.8,2493.4,0.4633]
[1730565257261,9.85251782,2493.9,2493.4,0.4633]
[1730565257458,2.10016937,2493.7,2493.5,0.12541508]
[1730565257654,2.10016937,2493.7,2493.6,0.40619197]
[1730565257855,2.10016937,2493.7,2493.6,0.28078]
[1730565258774,2.10016937,2493.7,2493.6,4.29118]
[1730565259062,0.4327,2494.0,2493.9,0.28075]
[1730565259063,2.10016937,2494.0,2493.9,0.28075]
[1730565259254,2.62549405,2494.1,2493.9,0.28075]
[1730565259255,2.10016937,2494.1,2494.0,0.28074]
[1730565259455,2.10016937,2494.1,2494.0,0.72834]
[1730565260263,2.62549405,2494.3,2494.0,0.4476]
[1730565260459,2.62549405,2494.3,2494.2,0.28072]
[1730565262159,2.90620405,2494.3,2494.0,0.4476]
[1730565262364,2.62534246,2494.2,2494.1,0.28073]
[1730565262663,5.83314246,2494.3,2494.2,0.28072]
[1730565262862,2.62534246,2494.3,2494.2,0.28072]
[1730565263071,2.62534246,2494.5,2494.2,0.12538236]
[1730565263365,6.21096623,2494.6,2494.3,0.5672766]
[1730565263553,3.08164246,2494.6,2494.5,0.28068]
[1730565264762,3.58562377,2494.6,2494.4,0.28069]
[1730565265067,2.62525948,2494.5,2494.4,0.28069]
[1730565267358,2.62525948,2494.5,2494.4,0.69959]
[1730565269364,2.62525948,2494.5,2494.4,0.4189]
[1730565269561,2.62525948,2494.5,2494.4,0.28069]
[1730565269764,0.2807,2494.4,2494.2,0.28071]
[1730565269963,4.38591,2494.3,2494.1,0.28072]
[1730565270262,4.38591,2494.3,2494.2,0.1253907]
[1730565270457,4.1052,2494.3,2494.0,0.8571]
[1730565270870,4.38591,2494.3,2494.1,0.40611043]
[1730565271066,4.38591,2494.3,2494.1,0.28072]
[1730565271273,4.38591,2494.3,2494.2,0.28072]
[1730565271970,4.1052,2494.3,2494.2,0.28072]
[1730565272166,6.73045948,2494.3,2493.8,3.2078]
[1730565272470,3.2078,2494.0,2493.9,0.40614576]
[1730565274472,6.33712377,2494.0,2493.9,0.12539576]
[1730565274672,6.33712377,2494.0,2493.9,0.40615512]
[1730565274673,6.61786377,2494.0,2493.9,0.40615512]
[1730565275680,6.61786377,2494.0,2493.9,0.12540512]
[1730565275884,6.33712377,2494.0,2493.8,0.28076]
[1730565276067,0.4285,2493.9,2493.8,0.28076]
[1730565276272,0.4285,2493.9,2493.8,0.40616312]
[1730565277878,0.4285,2493.9,2493.8,0.28076]
[1730565278178,0.4285,2493.9,2493.8,0.40616573]
[1730565279372,2.62631175,2494.1,2494.0,0.28074]
[1730565279575,2.62631175,2494.2,2494.0,0.12539601]
[1730565279768,2.62651559,2494.2,2494.1,0.28073]
[1730565279971,5.83431559,2494.3,2494.2,0.28072]
[1730565280276,6.25561559,2494.3,2494.2,0.28072]
[1730565280979,6.96792559,2494.3,2494.2,0.28072]
[1730565281176,6.68721559,2494.3,2494.2,0.28072]
[1730565281384,6.68726334,2494.3,2494.2,0.28072]
[1730565282078,6.96797334,2494.3,2494.2,0.28072]
[1730565282278,4.34141,2494.3,2494.2,0.28072]
[1730565282476,0.28073,2494.1,2493.7,0.4332]
[1730565282678,3.33783061,2494.2,2494.0,0.28073]
[1730565283076,2.62691061,2494.1,2494.0,0.28073]
[1730565283380,2.62691061,2494.1,2494.0,0.40613112]
[1730565283778,2.62691061,2494.1,2494.0,0.28073]
[1730565284984,2.62691061,2494.1,2494.0,0.40613019]
[1730565285182,2.90764061,2494.1,2493.7,0.4332]
[1730565285379,2.90764061,2494.1,2494.0,0.12540032]
[1730565285579,2.90764061,2494.1,2494.0,0.28074]
[1730565285781,2.90764061,2494.1,2493.7,0.4332]
[1730565285980,2.90764061,2494.1,2493.9,0.28075]
[1730565286275,2.90764061,2494.1,2494.0,0.1254037]
[1730565286881,0.28076,2493.9,2493.7,0.28076]
[1730565287074,0.8758,2493.8,2493.7,0.28076]
[1730565287280,1.3015,2493.8,2493.7,0.40617119]
[1730565288283,1.3015,2493.8,2493.7,0.28076]
[1730565288491,1.3015,2493.8,2493.7,0.40617027]
[1730565288680,0.8548,2493.8,2493.7,0.40617027]
[1730565289584,0.8548,2493.8,2493.7,1.17068336]
[1730565290088,0.8548,2493.8,2493.7,0.60681585]
[1730565290281,0.8548,2493.8,2493.7,1.17067074]
[1730565290489,0.8548,2493.8,2493.7,0.40617027]
[1730565291787,1.13556,2493.8,2493.7,0.40617027]
[1730565292083,1.13556,2493.8,2493.7,0.12541027]
[1730565292685,1.13556,2493.8,2493.7,0.40618027]
[1730565294389,0.8548,2493.8,2493.7,0.40618027]
[1730565294691,1.13556,2493.8,2493.7,0.40618027]
[1730565295485,0.8548,2493.8,2493.7,0.40618027]
[1730565296083,1.13556,2493.8,2493.7,0.40618027]
[1730565296488,0.8548,2493.8,2493.7,0.40618027]
[1730565297292,1.13556,2493.8,2493.7,0.40618027]
[1730565297593,0.8548,2493.8,2493.7,0.40618027]
[1730565298686,1.13556,2493.8,2493.7,0.40618027]
[1730565298889,0.8548,2493.8,2493.7,0.28077]
[1730565299089,1.13556,2493.8,2493.7,0.28077]
[1730565299293,0.8548,2493.8,2493.7,0.28077]
[1730565301291,1.13556,2493.8,2493.7,0.28077]
[1730565301990,0.8548,2493.8,2493.7,0.28077]
[1730565302486,2.29972575,2493.8,2493.7,0.28077]
[1730565302899,2.29972575,2493.8,2493.7,0.71387]
[1730565305393,0.8548,2493.8,2493.7,0.71387]
[1730565307099,2.29972575,2493.8,2493.7,0.71387]
[1730565309097,2.29972575,2493.8,2493.7,0.83927677]
[1730565309393,2.29972575,2493.8,2493.5,0.4266]
[1730565309394,6.31012575,2493.8,2493.1,0.05715971]
[1730565309694,1.44492575,2493.3,2493.2,1.17094336]
[1730565309997,1.44492575,2493.3,2493.2,0.40624967]
[1730565310195,2.18034575,2493.3,2493.2,0.40624967]
[1730565310401,5.38814575,2493.3,2493.2,0.12541967]
[1730565310694,7.07452039,2493.3,2493.2,0.12541967]
[1730565310902,13.86949296,2493.3,2492.9,0.4273]
[1730565311088,13.86949296,2493.3,2492.9,0.28086]
[1730565311089,3.41216039,2493.0,2492.9,0.28086]
[1730565311290,0.28087,2492.9,2492.8,0.28087]
[1730565311589,0.67266,2492.9,2492.8,0.28087]
[1730565311798,0.2918,2492.9,2492.8,0.28087]
[1730565312096,0.1918,2492.9,2492.8,0.28087]
[1730565314295,0.47266,2492.9,2492.8,0.28087]
[1730565314498,0.47266,2492.9,2492.7,0.28088]
[1730565314692,0.72867,2492.8,2492.7,0.28088]
[1730565315195,3.57910039,2492.8,2492.6,0.4273]
[1730565315399,3.57910039,2492.8,2492.5,0.2809]
[1730565315607,0.2809,2492.6,2492.5,0.2809]
[1730565315897,0.28089,2492.7,2492.6,0.28089]
[1730565316802,3.85998039,2492.8,2492.7,0.28089]
[1730565316994,3.57910039,2492.8,2492.7,0.28089]
[1730565319405,3.57910039,2492.8,2492.3,0.8952]
[1730565319903,3.57910039,2492.8,2492.7,0.28089]
[1730565320905,3.85998039,2492.8,2492.4,0.28092]
[1730565321110,3.85998039,2492.8,2492.6,0.2809]
[1730565321404,3.57910039,2492.8,2492.6,0.28089]
[1730565321702,3.57910039,2492.8,2492.7,0.28089]
[1730565322006,3.85998039,2492.8,2492.6,0.28089]
[1730565322301,3.57910039,2492.8,2492.7,0.28089]
[1730565322904,6.78690039,2492.8,2492.3,0.8952]
[1730565323202,6.78690039,2492.8,2492.7,0.28089]
[1730565323401,6.78690039,2492.8,2492.3,0.8952]
[1730565323402,7.06778039,2492.8,2492.6,0.28089]
[1730565323999,7.06778039,2492.8,2492.7,0.28089]
[1730565324000,6.78690039,2492.8,2492.7,0.28089]
[1730565324703,6.33910039,2492.8,2492.7,0.28089]
[1730565326508,3.13130039,2492.8,2492.7,0.28089]
[1730565327007,0.1918,2492.9,2492.8,0.28087]
[1730565329305,3.13130039,2493.0,2492.8,0.28087]
[1730565329508,3.13130039,2493.0,2492.9,0.28086]
[1730565330412,1.4453908,2493.0,2492.7,0.8836]
[1730565330607,1.4453908,2492.8,2492.7,1.16449]
[1730565332423,1.4453908,2492.8,2492.7,0.28089]
[1730565332623,1.4453908,2492.8,2492.6,0.28089]
[1730565332624,0.28089,2492.7,2492.6,0.28089]
[1730565332926,2.3217908,2492.7,2492.6,0.28089]
[1730565335526,1.8754908,2492.7,2492.6,0.28089]
[1730565341522,1.4453908,2492.8,2492.7,0.28089]
[1730565344239,1.4453908,2492.8,2492.7,0.97075204]
[1730565347932,1.4453908,2492.8,2492.7,0.97096882]
[1730565348936,1.4453908,2492.8,2492.7,0.28089]
[1730565349132,1.4453908,2492.8,2492.7,0.97101858]
[1730565350425,1.7262608,2492.8,2492.7,0.4063481]
[1730565350625,1.7262608,2492.8,2492.7,0.28089]
[1730565350829,1.7262608,2492.8,2492.5,0.422]
[1730565350830,1.4453908,2492.8,2492.5,0.422]
[1730565351033,1.4453908,2492.6,2492.5,0.70291]
[1730565351331,1.4453908,2492.6,2492.5,1.5941257]
[1730565351631,1.8855908,2492.6,2492.5,1.5941257]
[1730565351838,1.8855908,2492.6,2492.5,1.39337939]
[1730565352331,1.8855908,2492.6,2492.5,0.70291]
[1730565352535,1.8855908,2492.6,2492.5,1.59078815]
[1730565353241,0.4402,2492.6,2492.5,1.59078815]
[1730565353430,1.4453908,2492.8,2492.5,1.30987815]
[1730565353628,1.4453908,2492.8,2492.7,0.28089]
[1730565353930,1.4453908,2492.8,2492.7,0.40635838]
[1730565355338,4.07278337,2492.8,2492.7,0.96857212]
[1730565356336,1.4453908,2492.8,2492.7,0.96857212]
[1730565356546,1.4453908,2492.8,2492.7,0.96856994]
[1730565356935,4.07690645,2492.8,2492.7,0.96856994]
[1730565357237,1.4453908,2492.8,2492.7,0.96856994]
[1730565359537,1.4453908,2492.8,2492.7,0.28089]
[1730565359738,1.4453908,2492.8,2492.7,0.96864839]
[1730565360237,1.4453908,2492.8,2492.7,1.16939044]
[1730565360546,1.4453908,2492.8,2492.7,0.96864839]
[1730565360746,1.4453908,2492.8,2492.7,1.16939149]
[1730565361046,1.7262608,2492.8,2492.7,1.16939036]
[1730565361236,1.7262608,2492.8,2492.7,0.96864839]
[1730565361436,1.7262608,2492.8,2492.7,0.1254639]
[1730565361939,1.7262608,2492.8,2492.7,0.96867167]
[1730565362139,1.4453908,2492.8,2492.7,0.4063539]
[1730565362342,0.28089,2492.7,2492.6,0.28089]
[1730565362536,2.1573808,2492.7,2492.6,0.76310931]
[1730565362743,2.1573808,2492.7,2492.6,0.96872885]
[1730565363246,1.8764908,2492.7,2492.6,0.96872885]
[1730565363646,2.1573808,2492.7,2492.6,0.4063672]
[1730565363848,2.1573808,2492.7,2492.6,0.96539079]
[1730565364343,2.1573808,2492.7,2492.6,0.96539955]
[1730565364560,2.1573808,2492.7,2492.6,0.40637596]
[1730565365450,1.8764908,2492.7,2492.6,0.40637596]
[1730565365841,2.1573808,2492.7,2492.6,0.40637596]
[1730565366850,1.8764908,2492.7,2492.6,0.40637596]
[1730565367151,2.1573808,2492.7,2492.6,0.40637596]
[1730565367453,1.8764908,2492.7,2492.6,0.40637596]
[1730565367850,1.4453908,2492.7,2492.6,0.96500682]
[1730565368148,4.6531908,2492.8,2492.6,0.12547596]
[1730565368342,4.6531908,2492.8,2492.7,0.85496596]
[1730565369152,4.6531908,2492.8,2492.7,0.72949]
[1730565369553,4.6531908,2492.8,2492.7,0.85495767]
[1730565369851,1.4453908,2492.8,2492.7,0.85495423]
[1730565370148,1.4453908,2492.8,2492.7,0.40635423]
[1730565371144,1.7262608,2492.8,2492.7,0.40635423]
[1730565371546,1.4453908,2492.8,2492.7,0.40635423]
[1730565373655,4.1002,2492.9,2492.7,0.12546423]
[1730565373857,0.8924,2492.9,2492.8,0.28087]
[1730565374155,2.3377908,2492.9,2492.8,0.96483423]
[1730565375148,2.3377908,2492.9,2492.8,0.96491488]
[1730565375555,4.96915814,2492.9,2492.8,0.96491488]
[1730565376255,2.3377908,2492.9,2492.8,0.96491488]
[1730565376555,2.3377908,2492.9,2492.8,0.96511308]
[1730565376757,2.3377908,2492.9,2492.8,0.9651415]
[1730565377151,2.3377908,2492.9,2492.8,0.4063299]
[1730565377352,1.8855908,2492.9,2492.8,0.9651299]
[1730565377852,4.51710725,2492.9,2492.8,0.9651299]
[1730565378046,4.51710725,2492.9,2492.8,1.16586331]
[1730565378250,4.51710725,2492.9,2492.8,1.16586187]
[1730565378446,4.07690725,2492.9,2492.8,1.16586187]
[1730565378852,4.07690725,2492.9,2492.8,0.9651299]
[1730565379062,4.07690725,2492.9,2492.8,0.96512836]
[1730565379561,4.07690725,2492.9,2492.8,1.16585897]
[1730565379958,2.63151645,2492.9,2492.8,0.28087]
[1730565380145,4.07690725,2493.0,2492.8,1.16584772]
[1730565380350,4.07690725,2493.0,2492.9,2.04702747]
[1730565380551,1.4453908,2493.0,2492.9,1.84631064]
[1730565380762,4.07652839,2493.0,2492.9,1.84631064]
[1730565381567,4.0764815,2493.0,2492.9,1.84631064]
[1730565383457,4.0764815,2493.0,2492.9,1.72085622]
[1730565383661,4.0764815,2493.0,2492.9,1.84630574]
[1730565387265,1.4453908,2493.0,2492.9,1.84630574]
[1730565387560,1.4453908,2493.0,2492.9,2.04702194]
[1730565390768,1.4453908,2493.0,2492.9,2.04664138]
[1730565391259,1.4453908,2493.0,2492.9,1.84592518]
[1730565391656,1.4453908,2493.0,2492.9,2.04663637]
[1730565392262,1.4453908,2493.0,2492.9,1.84592518]
[1730565394268,1.4453908,2493.0,2492.9,1.16206]
[1730565394468,1.4453908,2493.0,2492.9,1.84577662]
[1730565397666,1.4453908,2493.0,2492.9,1.72033069]
[1730565397858,1.4453908,2493.0,2492.9,1.84577546]
[1730565398667,1.4453908,2493.1,2493.0,0.28085]
[1730565398872,1.4453908,2493.1,2493.0,0.85089111]
[1730565401268,1.4453908,2493.1,2493.0,0.85089575]
[1730565404783,1.4453908,2493.1,2493.0,0.8508921]
[1730565408177,1.4453908,2493.1,2493.0,1.40895731]
[1730565408372,0.4522,2493.2,2493.1,0.28084]
[1730565408584,6.2647907,2493.3,2493.2,0.28083]
[1730565408784,5.8388907,2493.3,2493.2,4.29203]
[1730565408987,2.6310907,2493.3,2493.2,5.17607336]
[1730565410192,0.4552,2493.5,2493.2,4.89524336]
[1730565410390,0.4552,2493.5,2493.4,0.28081]
[1730565410590,0.4552,2493.5,2493.4,0.40624132]
[1730565411285,0.4552,2493.5,2493.4,4.41664132]
[1730565411491,0.4313,2493.6,2493.5,0.2808]
[1730565411884,0.4313,2493.6,2493.5,0.40621413]
[1730565413190,0.4313,2493.6,2493.5,0.2808]
[1730565413586,0.4313,2493.6,2493.5,0.40621521]
[1730565413784,0.4313,2493.6,2493.5,0.2808]
[1730565416796,0.4264,2493.8,2493.7,0.28077]
[1730565417296,3.05613061,2493.8,2493.7,4.29117]
[1730565417497,3.05613061,2493.8,2493.7,0.71467]
[1730565417691,3.05613061,2493.8,2493.7,4.72507]
[1730565417994,3.05613061,2493.8,2493.7,0.71467]
[1730565418397,3.05613061,2493.8,2493.7,0.28077]
[1730565418788,0.4264,2493.8,2493.7,0.28077]
[1730565427117,1.8717908,2493.8,2493.7,0.28077]
[1730565427420,0.28078,2493.7,2493.6,0.28078]
[1730565427616,1.4453908,2493.7,2493.1,0.4607]
[1730565427819,1.4453908,2493.4,2493.3,0.28082]
[1730565428414,1.8705908,2493.4,2493.3,0.28082]
[1730565429919,0.4252,2493.4,2493.3,0.28082]
[1730565431310,2.1514008,2493.4,2493.3,0.28082]
[1730565431621,1.8705908,2493.4,2493.3,0.28082]
[1730565431814,2.1514008,2493.4,2493.3,0.28082]
[1730565432116,1.8705908,2493.4,2493.3,0.28082]
[1730565432914,5.8809908,2493.4,2492.9,5.3553508]
[1730565433116,1.7262108,2493.3,2493.2,0.28083]
[1730565433429,1.4453908,2493.3,2493.2,0.28083]
[1730565434117,1.7262108,2493.3,2493.2,0.28083]
[1730565434724,1.4453908,2493.3,2493.2,0.28083]
[1730565434924,1.7262108,2493.3,2493.2,0.28083]
[1730565435425,1.4453908,2493.3,2493.2,0.28083]
[1730565435628,5.0783908,2493.4,2492.9,2.1475508]
[1730565435827,5.3592008,2493.4,2493.3,0.28082]
[1730565436330,9.3696008,2493.4,2493.3,0.28082]
[1730565436818,6.1618008,2493.4,2493.3,0.28082]
[1730565437018,9.3696008,2493.4,2493.3,0.28082]
[1730565439719,6.1618008,2493.4,2493.3,0.28082]
[1730565440025,9.3696008,2493.4,2493.3,0.28082]
[1730565440428,6.1618008,2493.4,2493.3,0.28082]
[1730565441226,9.3696008,2493.4,2493.3,0.28082]
[1730565444227,6.1618008,2493.4,2493.3,0.28082]
[1730565444429,9.3696008,2493.4,2493.3,0.28082]
[1730565444930,6.1618008,2493.4,2493.3,0.28082]
[1730565445231,0.28082,2493.3,2493.2,0.28082]
[1730565445433,1.7262108,2493.3,2493.2,0.28082]
[1730565446227,1.4453908,2493.3,2493.2,0.28082]
[1730565447735,1.7262108,2493.3,2493.2,0.28082]
[1730565447933,1.4453908,2493.3,2493.2,0.28082]
[1730565448132,1.7262108,2493.3,2493.2,0.28082]
[1730565448330,1.4453908,2493.3,2492.8,0.8956]
[1730565448527,1.4453908,2493.1,2492.8,0.8956]
[1730565448722,1.7262308,2493.1,2493.0,0.28084]
[1730565448926,1.4453908,2493.1,2493.0,0.28084]
[1730565449936,0.28086,2493.0,2492.9,0.28086]
[1730565450130,4.6531908,2493.0,2492.8,0.8956]
[1730565450329,4.6531908,2493.0,2492.9,0.28086]
[1730565450532,4.9340408,2493.0,2492.9,0.28086]
[1730565450735,4.6531908,2493.0,2492.8,0.8956]
[1730565451035,0.4585,2492.9,2492.8,1.17647]
[1730565452338,0.73936,2492.9,2492.8,0.28087]
[1730565453434,0.4585,2492.9,2492.8,0.28087]
[1730565453828,0.73936,2492.9,2492.8,0.28087]
[1730565454032,0.4585,2492.9,2492.8,0.28087]
[1730565454453,3.2078,2493.1,2492.7,1.4453908]
[1730565454630,3.2078,2493.1,2493.0,0.28085]
[1730565458540,4.6531908,2493.1,2493.0,0.28085]
[1730565459849,1.4453908,2493.1,2493.0,0.28085]
[1730565460349,1.8929908,2493.1,2493.0,0.28085]
[1730565461850,5.1007908,2493.1,2493.0,0.28085]
[1730565465147,1.8929908,2493.1,2493.0,0.28085]
[1730565475153,1.8929908,2493.1,2493.0,0.40629977]
[1730565479153,0.4476,2493.1,2493.0,0.40629977]
[1730565480459,1.8929908,2493.1,2493.0,0.40629977]
[1730565480852,0.4476,2493.1,2493.0,0.40629977]
[1730565482161,0.4476,2493.1,2493.0,0.40629422]
[1730565483155,0.4384,2493.3,2493.2,0.28083]
[1730565483954,0.4384,2493.3,2493.2,0.40626869]
[1730565485458,0.4384,2493.3,2493.2,0.28083]
[1730565485665,0.4384,2493.3,2493.2,0.40626893]
[1730565488462,1.8837908,2493.3,2493.2,0.40626893]
[1730565489961,2.1646108,2493.3,2493.2,0.12543893]
[1730565490157,0.28083,2493.2,2493.1,0.28084]
[1730565490351,3.48863,2493.2,2493.1,0.40628707]
[1730565490560,3.2078,2493.2,2493.1,0.40628707]
[1730565493766,2.1646108,2493.3,2493.1,0.12544707]
[1730565493966,2.1646108,2493.3,2493.2,0.28083]
[1730565494363,5.0915908,2493.3,2493.2,0.28083]
[1730565494567,5.0915908,2493.3,2493.2,0.40627342]
[1730565494762,5.0915908,2493.3,2493.2,0.28083]
[1730565495166,5.0915908,2493.3,2493.2,0.40627409]
[1730565496272,5.3724108,2493.3,2493.2,0.40627409]
[1730565497165,5.0915908,2493.3,2493.2,0.40627409]
[1730565497372,5.3724108,2493.3,2493.2,0.28083]
[1730565498263,5.0915908,2493.3,2493.2,0.28083]
[1730565498666,5.3724108,2493.3,2493.2,0.28083]
[1730565499265,5.3724108,2493.3,2493.2,0.40627387]
[1730565499476,5.3724108,2493.3,2493.2,0.28083]
[1730565499671,5.3724108,2493.3,2493.2,0.40627485]
[1730565499876,5.3724108,2493.3,2493.2,0.28083]
[1730565500173,5.0915908,2493.3,2493.2,0.40627557]
[1730565503271,5.0915908,2493.3,2493.2,0.40627564]
[1730565503478,5.0915908,2493.3,2493.2,0.53172128]
[1730565504683,5.0915908,2493.3,2493.2,0.53171889]
[1730565504979,5.3724108,2493.3,2493.2,0.53171889]
[1730565505181,8.52808753,2493.3,2493.2,0.40627325]
[1730565505677,5.32028753,2493.3,2493.2,0.40627325]
[1730565505876,8.24726753,2493.3,2493.2,0.40627325]
[1730565507073,8.24726753,2493.3,2493.2,0.28083]
[1730565507276,5.03946753,2493.3,2493.2,0.40627482]
[1730565507478,8.24726753,2493.3,2493.2,0.28083]
[1730565507683,5.0915908,2493.3,2493.2,0.40627315]
[1730565508781,1.8837908,2493.3,2493.2,0.40627315]
[1730565514277,1.8837908,2493.3,2493.2,0.28083]
[1730565514477,1.8837908,2493.3,2493.2,0.4062691]
[1730565516780,7.6212016,2493.3,2493.2,0.1254391]
[1730565516980,0.28085,2493.0,2492.7,0.4603]
[1730565517180,2.3239908,2492.9,2492.8,1.16300388]
[1730565517481,2.7840908,2492.9,2492.8,1.16300388]
[1730565517681,3.0649508,2492.9,2492.8,0.88215514]
[1730565517986,2.7840908,2492.9,2492.8,0.40632426]
[1730565518184,2.7840908,2492.9,2492.8,0.28087]
[1730565518482,5.94324928,2492.9,2492.8,0.28087]
[1730565519286,2.7840908,2492.9,2492.8,0.28087]
[1730565520183,3.0649508,2492.9,2492.8,0.28087]
[1730565520587,2.7840908,2492.9,2492.6,0.4603]
[1730565520782,4.6531908,2492.7,2492.5,0.4239]
[1730565521085,1.4453908,2492.6,2492.5,0.70481]
[1730565521283,1.8819908,2492.6,2492.5,0.83028587]
[1730565521484,1.8819908,2492.6,2492.5,0.70481]
[1730565532988,0.4366,2492.6,2492.5,0.70481]
[1730565535593,0.4366,2492.6,2492.2,0.28093]
[1730565535594,0.28092,2492.4,2492.2,0.28093]
[1730565535793,1.8726908,2492.3,2492.2,0.28093]
[1730565537390,5.0804908,2492.3,2492.2,0.28093]
[1730565538197,1.8726908,2492.3,2492.2,0.28093]
[1730565539293,0.28095,2492.2,2491.8,0.28099]
[1730565539496,2.3274908,2492.1,2492.0,0.28095]
[1730565539688,0.8821,2492.1,2492.0,0.28095]
[1730565539896,1.4453908,2492.5,2492.0,6.1606108]
[1730565540092,1.8926908,2492.5,2492.4,0.28092]
[1730565541598,3.9492,2492.6,2492.4,0.28092]
[1730565541599,4.6531908,2492.6,2492.4,0.28092]
[1730565541797,2.3493908,2492.9,2492.8,0.28087]
[1730565543099,2.3493908,2492.9,2492.6,0.4427]
[1730565543299,1.4453908,2492.7,2492.6,0.7236]
[1730565546311,1.4453908,2492.8,2492.7,0.28089]
[1730565550005,0.4505,2492.9,2492.8,0.28087]
[1730565550203,1.4453908,2493.1,2493.0,0.28085]
[1730565558108,0.4467,2493.2,2493.1,0.28084]
[1730565580224,4.0604,2493.3,2493.2,0.28083]
[1730565580225,3.2078,2493.3,2493.2,0.28083]
[1730565582525,0.8861,2493.6,2493.2,0.28083]
[1730565582724,0.8861,2493.6,2493.5,0.2808]
[1730565582925,4.0939,2493.6,2493.5,0.2808]
[1730565583125,8.1043,2493.6,2493.5,0.2808]
[1730565583832,4.8965,2493.6,2493.5,0.2808]
[1730565584031,2.3314908,2493.6,2493.5,0.2808]
[1730565585242,8.69844928,2493.6,2493.3,0.8725]
[1730565585427,8.97923928,2493.6,2493.4,0.2808]
[1730565585629,8.69844928,2493.6,2493.3,0.8725]
[1730565585830,5.49064928,2493.6,2493.5,0.2808]
[1730565586541,8.69844928,2493.6,2493.5,0.2808]
[1730565587138,8.97922928,2493.6,2493.4,0.2808]
[1730565587644,8.69844928,2493.6,2493.5,0.2808]
[1730565588044,5.5392908,2493.6,2493.5,0.2808]
[1730565588745,8.69309967,2493.6,2493.3,0.8725]
[1730565588942,8.97387967,2493.6,2493.4,0.2808]
[1730565589347,3.15380887,2493.5,2493.4,0.2808]
[1730565592351,5.8200708,2493.6,2493.4,0.2808]
[1730565593540,5.8200708,2493.6,2493.0,0.70213]
[1730565593541,1.4453908,2493.5,2493.0,1.4453908]
[1730565593744,1.4453908,2493.3,2493.2,0.28083]
[1730565593947,4.6531908,2493.3,2493.2,0.28083]
[1730565594147,5.5002908,2493.3,2493.2,0.28083]
[1730565596245,0.8471,2493.3,2493.2,0.28083]
[1730565600748,0.8471,2493.3,2493.2,0.40626926]
[1730565601653,0.8471,2493.3,2493.2,0.40626686]
[1730565602043,0.8471,2493.3,2493.2,0.40626698]
[1730565605452,0.8471,2493.3,2493.2,0.40626806]
[1730565608358,6.36160887,2493.5,2493.4,0.28081]
[1730565608556,3.6721,2493.5,2493.4,0.28081]
[1730565608952,3.6721,2493.5,2493.4,0.74391]
[1730565610252,0.4643,2493.5,2493.4,0.74391]
[1730565618063,3.61810887,2493.5,2493.4,0.74391]
[1730565618266,3.89890887,2493.5,2493.4,0.4631]
[1730565618460,0.28081,2493.4,2493.2,0.28082]
[1730565618660,3.2078,2493.3,2493.2,0.28082]
[1730565618869,3.6443,2493.3,2493.2,0.28082]
[1730565621371,3.2078,2493.3,2493.2,0.28082]
[1730565621672,4.59919967,2493.4,2493.3,0.28082]
[1730565622569,1.4453908,2493.4,2493.3,0.28082]
[1730565623474,5.12701366,2493.4,2493.3,0.28082]
[1730565627380,1.4453908,2493.4,2493.3,0.28082]
[1730565627680,5.12701366,2493.4,2493.3,0.28082]
[1730565628575,1.4453908,2493.4,2493.3,0.28082]
[1730565628975,5.12701366,2493.4,2493.3,0.28082]
[1730565629379,1.4453908,2493.4,2493.3,0.28082]
[1730565629580,4.60412342,2493.4,2493.3,0.28082]
[1730565635589,4.60412342,2493.4,2493.1,0.4264]